fUSD/lending_fUSD_20250814
["ID","MTS","AMOUNT","RATE_DAILY","PERIOD"]
[379173388,1755177039023,-500.0,0.0002451,30]
[379173389,1755177039032,-500.0,0.0002451,30]
[379173390,1755177039042,-500.0,0.0002451,30]
[379173391,1755177039051,-500.0,0.0002451,30]
[379173392,1755177039060,-500.0,0.0002451,30]
[379173393,1755177039069,-600.0,0.0002451,30]
[379173394,1755177039079,-500.0,0.0002451,30]
[379173395,1755177039088,-500.0,0.0002451,30]
[379173396,1755177039098,-500.0,0.0002451,30]
[379173397,1755177039107,-500.0,0.0002451,30]
[379173398,1755177039117,-500.0,0.0002451,30]
[379173399,1755177039126,-500.0,0.0002451,30]
[379173400,1755177039135,-700.0,0.0002451,30]
[379173401,1755177039144,-500.0,0.0002451,30]
[379173402,1755177039154,-500.0,0.0002451,30]
[379173403,1755177039164,-500.0,0.0002451,30]
[379173405,1755177039173,-500.0,0.0002451,30]
[379173407,1755177039183,-500.0,0.0002451,30]
[379173408,1755177039193,-886.86293351,0.0002451,30]
[379173409,1755177039202,-500.0,0.0002451,30]
[379173410,1755177039420,-925.90320899,0.0002451,30]
[379173411,1755177039431,-833.18631755,0.0002451,30]
[379173412,1755177039441,-500.0,0.0002451,30]
[379173413,1755177039452,-600.0,0.0002451,30]
[379173414,1755177039461,-600.0,0.0002451,30]
[379173415,1755177039471,-600.0,0.0002451,30]
[379173416,1755177039483,-500.0,0.0002451,30]
[379173417,1755177039493,-600.0,0.0002451,30]
[379173418,1755177039503,-500.0,0.0002451,30]
[379173419,1755177039513,-600.0,0.0002451,30]
[379173420,1755177039524,-500.0,0.0002451,30]
[379173421,1755177039533,-600.0,0.0002451,30]
[379173422,1755177039543,-600.0,0.0002451,30]
[379173423,1755177039553,-897.3363093,0.0002451,30]
[379173435,1755177040148,-102.6636907,0.0002451,30]
[379173436,1755177040159,-600.0,0.0002451,30]
[379173437,1755177040169,-500.0,0.0002451,30]
[379173438,1755177040179,-1000.0,0.0002451,30]
[379173439,1755177040189,-600.0,0.0002451,30]
[379173440,1755177040199,-500.0,0.0002451,30]
[379173441,1755177040209,-1000.0,0.0002451,30]
[379173442,1755177040219,-600.0,0.0002451,30]
[379173443,1755177040229,-500.0,0.0002451,30]
[379173444,1755177040238,-1000.0,0.0002451,30]
[379173445,1755177040248,-600.0,0.0002451,30]
[379173446,1755177040259,-500.0,0.0002451,30]
[379173447,1755177040269,-1000.0,0.0002451,30]
[379173448,1755177040278,-600.0,0.0002451,30]
[379173449,1755177040288,-1000.0,0.0002451,30]
[379173450,1755177040297,-600.0,0.0002451,30]
[379173451,1755177040307,-500.0,0.0002451,30]
[379173452,1755177040317,-1000.0,0.0002451,30]
[379173453,1755177040327,-634.98998025,0.0002451,30]
[379173454,1755177040337,-500.0,0.0002451,30]
[379173455,1755177040347,-1000.0,0.0002451,30]
[379173457,1755177040357,-500.0,0.0002451,30]
[379173458,1755177040366,-1000.0,0.0002451,30]
[379173459,1755177040375,-500.0,0.0002451,30]
[379173460,1755177040386,-1000.0,0.0002451,30]
[379173461,1755177040395,-832.30405749,0.0002451,30]
[379173462,1755177040405,-1000.0,0.0002451,30]
[379173463,1755177040415,-1000.0,0.0002451,30]
[379173464,1755177040425,-1000.0,0.0002451,30]
[379173466,1755177040434,-853.33079569,0.0002451,30]
[379173467,1755177040447,-225.4238721,0.0002451,30]
[379173468,1755177040457,-96.73788866,0.0002451,30]
[379173469,1755177040468,-403.26211134,0.0002451,30]
[379173470,1755177040480,-575.17878704,0.0002451,30]
[379173471,1755177040489,-458.13769775,0.0002451,30]
[379173472,1755177040499,-1074.33,0.00024511,2]
[379173473,1755177040509,-206.66,0.00024525,2]
[379173474,1755177040519,-166.66,0.00024535,2]
[379173475,1755177040529,-11327.65250247,0.00024598,2]
[379173476,1755177040539,-691.73,0.00024685,30]
[379173477,1755177040548,-587.0,0.00024847,2]
[379173478,1755177040558,-9568.00811046,0.00024892,2]
[379173479,1755177040568,-501.78962055,0.00024923,2]
[379173480,1755177040577,-2351.0,0.00025083,2]
[379173481,1755177040588,-1354.33994577,0.00025177,2]
[379173482,1755177040598,-327.65,0.00025334,2]
[379173483,1755177040608,-166.66,0.00025345,2]
[379173484,1755177040618,-1000.0,0.00025396,2]
[379173485,1755177040630,-6031.09883675,0.00025467,2]
[379173486,1755177040711,-2.44470102,0.00025467,2]
[379173487,1755177040779,-1463.65113369,0.00025467,2]
[379173488,1755177040792,-2070.813439,0.00025467,2]
[379173489,1755177040801,-305.186561,0.00025494,2]
[379173490,1755177040867,-4756.7124017,0.00025494,2]
[379173491,1755177040879,-1373.06714538,0.00025494,2]
[379173492,1755177040891,-4557.0,0.00025494,2]
[379173493,1755177040910,-5590.30389192,0.00025494,2]
[379173494,1755177040920,-627.44,0.00025513,7]
[379173495,1755177040929,-1300.51765661,0.00025547,2]
[379173496,1755177040939,-150.0,0.00025583,2]
[379173497,1755177040949,-3065.09,0.00025639,2]
[379173498,1755177040958,-1074.33,0.00025678,2]
[379173499,1755177040968,-191.99396147,0.00025682,2]
[379173500,1755177040983,-162.00603853,0.00025682,2]
[379173501,1755177040992,-247.47276689,0.00025699,2]
[379173502,1755177041002,-171.86909689,0.000258,2]
[379173503,1755177041018,-328.13090311,0.000258,2]
[379173504,1755177041027,-508.1816931,0.000258,2]
[379173505,1755177041037,-150.0,0.00025807,2]
[379173506,1755177041047,-290.24583771,0.00025816,2]
[379173507,1755177041057,-597.19,0.00025904,2]
[379173508,1755177041066,-1776.25156608,0.0002593,2]
[379173509,1755177041148,-375.63843392,0.0002593,2]
[379173510,1755177041158,-333.01890853,0.00025932,2]
[379173511,1755177041168,-9583.7146308,0.00026031,2]
[379173512,1755177041178,-9568.00811046,0.00026041,2]
[379173513,1755177041187,-375.79197935,0.00026049,2]
[379173514,1755177041197,-166.66,0.00026155,2]
[379173515,1755177041207,-418.56505017,0.00026165,2]
[379173516,1755177041217,-327.65,0.00026249,2]
[379173517,1755177041229,-461.33812099,0.00026282,2]
[379173518,1755177041239,-504.11119181,0.00026398,2]
[379173519,1755177041249,-8765.70389524,0.00026492,2]
[379173520,1755177041260,-546.88426263,0.00026515,2]
[379173521,1755177041271,-1852.42,0.00026539,2]
[379173522,1755177041281,-1000.0,0.0002656,2]
[379173523,1755177041292,-9999.99,0.00026591,2]
[379173524,1755177041302,-150.99,0.00026591,2]
[379173525,1755177041312,-299.99,0.00026591,12]
[379173526,1755177041322,-8253.99,0.00026591,2]
[379173527,1755177041331,-9568.00811046,0.00026616,2]
[379173528,1755177041348,-844.53,0.00026628,2]
[379173529,1755177041358,-9583.7146308,0.00026666,2]
[379173530,1755177041371,-177.03,0.00026676,2]
[379173531,1755177041382,-8765.70389515,0.00026717,2]
[379173532,1755177041392,-1074.33,0.00026845,2]
[379173533,1755177041402,-228.74990861,0.000269,2]
[379173534,1755177041412,-166.66,0.00026965,2]
[379173535,1755177041421,-423.32641562,0.00026969,2]
[379173536,1755177041431,-399.10040931,0.00026973,2]
[379173537,1755177041441,-28751.1438924,0.0002699,2]
[379173538,1755177041451,-1000.0,0.00026999,2]
[379173539,1755177041461,-273.88725199,0.00027,30]
[379173540,1755177041471,-500.0,0.00027,30]
[379173541,1755177041484,-500.0,0.00027,30]
[379173542,1755177041494,-500.0,0.00027,30]
[379173543,1755177041504,-500.0,0.00027,30]
[379173544,1755177041514,-500.0,0.00027,30]
[379173545,1755177041525,-500.0,0.00027,30]
[379173546,1755177041535,-500.0,0.00027,30]
[379173547,1755177041546,-500.0,0.00027,30]
[379173548,1755177041556,-500.0,0.00027,30]
[379173549,1755177041567,-500.0,0.00027,30]
[379173550,1755177041577,-500.0,0.00027,30]
[379173551,1755177041589,-500.0,0.00027,30]
[379173552,1755177041600,-500.0,0.00027,30]
[379173553,1755177041610,-500.0,0.00027,30]
[379173554,1755177041621,-710.91669624,0.00027,30]
[379173555,1755177041634,-500.0,0.00027,30]
[379173556,1755177041644,-500.0,0.00027,30]
[379173557,1755177041654,-500.0,0.00027,30]
[379173558,1755177041664,-500.0,0.00027,30]
[379173559,1755177041674,-500.0,0.00027,30]
[379173560,1755177041685,-500.0,0.00027,30]
[379173561,1755177041695,-500.0,0.00027,30]
[379173562,1755177041705,-500.0,0.00027,30]
[379173563,1755177041716,-500.0,0.00027,30]
[379173564,1755177041727,-500.0,0.00027,30]
[379173565,1755177041737,-500.0,0.00027,30]
[379173566,1755177041748,-500.0,0.00027,30]
[379173567,1755177041758,-500.0,0.00027,30]
[379173568,1755177041768,-500.0,0.00027,30]
[379173569,1755177041778,-500.0,0.00027,30]
[379173570,1755177041788,-500.0,0.00027,30]
[379173571,1755177041799,-500.0,0.00027,30]
[379173572,1755177041809,-500.0,0.00027,30]
[379173573,1755177041820,-500.0,0.00027,30]
[379173574,1755177041831,-500.0,0.00027,30]
[379173575,1755177041841,-500.0,0.00027,30]
[379173576,1755177041851,-500.0,0.00027,30]
[379173577,1755177041861,-500.0,0.00027,30]
[379173578,1755177041871,-500.0,0.00027,30]
[379173579,1755177041882,-500.0,0.00027,30]
[379173580,1755177041893,-500.0,0.00027,30]
[379173581,1755177041904,-500.0,0.00027,30]
[379173582,1755177041914,-500.0,0.00027,30]
[379173583,1755177041924,-499.16266562,0.00027,30]
[379173584,1755177041935,-600.0,0.00027,30]
[379173585,1755177041945,-600.0,0.00027,30]
[379173586,1755177041956,-714.63916207,0.00027,30]
[379173587,1755177041967,-600.0,0.00027,30]
[379173588,1755177041978,-600.0,0.00027,30]
[379173589,1755177041988,-600.0,0.00027,30]
[379173590,1755177041998,-500.0,0.00027,30]
[379173591,1755177042008,-572.14850182,0.00027,30]
[379173592,1755177042018,-500.0,0.00027,30]
[379173593,1755177042028,-500.0,0.00027,30]
[379173594,1755177042039,-600.0,0.00027,30]
[379173595,1755177042049,-500.0,0.00027,30]
[379173596,1755177042059,-500.0,0.00027,30]
[379173597,1755177042069,-600.0,0.00027,30]
[379173598,1755177042078,-600.0,0.00027,30]
[379173599,1755177042089,-500.0,0.00027,30]
[379173600,1755177042100,-500.0,0.00027,30]
[379173601,1755177042110,-600.0,0.00027,30]
[379173602,1755177042120,-170.53031382,0.00027,30]
[379173603,1755177042130,-500.0,0.00027,30]
[379173605,1755177042140,-514.93845484,0.00027,30]
[379173607,1755177042150,-600.0,0.00027,30]
[379173608,1755177042160,-1000.0,0.00027,30]
[379173610,1755177042170,-500.0,0.00027,30]
[379173612,1755177042180,-1000.0,0.00027,30]
[379173613,1755177042189,-600.0,0.00027,30]
[379173615,1755177042199,-500.0,0.00027,30]
[379173617,1755177042210,-600.0,0.00027,30]
[379173618,1755177042220,-1000.0,0.00027,30]
[379173619,1755177042233,-500.0,0.00027,30]
[379173620,1755177042243,-600.0,0.00027,30]
[379173621,1755177042253,-1000.0,0.00027,30]
[379173622,1755177042264,-500.0,0.00027,30]
[379173623,1755177042275,-1000.0,0.00027,30]
[379173624,1755177042286,-600.0,0.00027,30]
[379173625,1755177042297,-500.0,0.00027,30]
[379173626,1755177042308,-1000.0,0.00027,30]
[379173627,1755177042318,-500.0,0.00027,30]
[379173628,1755177042491,-500.0,0.00027,30]
[379173629,1755177042502,-1000.0,0.00027,30]
[379173630,1755177042512,-500.0,0.00027,30]
[379173631,1755177042522,-1000.0,0.00027,30]
[379173632,1755177042532,-1000.0,0.00027,30]
[379173633,1755177042543,-500.0,0.00027,30]
[379173634,1755177042554,-1000.0,0.00027,30]
[379173635,1755177042564,-1000.0,0.00027,30]
[379173636,1755177042575,-1000.0,0.00027,30]
[379173637,1755177042587,-1000.0,0.00027,30]
[379173638,1755177042597,-1000.0,0.00027,30]
[379173639,1755177042608,-500.0,0.00027,30]
[379173640,1755177042620,-500.0,0.00027,30]
[379173641,1755177042632,-500.0,0.00027,30]
[379173642,1755177042644,-500.0,0.00027,30]
[379173643,1755177042654,-162.61202953,0.00027,30]
[379173644,1755177042663,-500.0,0.00027,30]
[379173645,1755177042674,-458.13769775,0.00027,30]
[379173646,1755177042684,-823.0,0.00027028,2]
[379173647,1755177042695,-327.65,0.00027165,2]
[379173648,1755177042705,-9568.00811046,0.0002719,2]
[379173649,1755177042716,-170.0,0.00027233,23]
[379173650,1755177042727,-1147.52,0.0002725,120]
[379173651,1755177042737,-228.74990854,0.00027263,2]
[379173652,1755177042747,-627.44,0.00027264,7]
[379173653,1755177042757,-9583.7146308,0.00027287,2]
[379173654,1755177042767,-67086.0024156,0.00027387,2]
[379173655,1755177042777,-52064.8458219,0.00027387,2]
[379173656,1755177042787,-153.20126682,0.0002739,2]
[379173658,1755177042806,-504.78118852,0.00027397,2]
[379173660,1755177042826,-479.85,0.00027397,2]
[379173662,1755177042836,-1751.97,0.00027397,2]
[379173664,1755177042847,-4879.8,0.00027397,2]
[379173666,1755177042857,-785.51,0.00027397,2]
[379173668,1755177042868,-920.21,0.00027397,2]
[379173670,1755177042878,-400.0,0.00027397,2]
[379173672,1755177042889,-3738.5,0.00027397,2]
[379173674,1755177042899,-1079.57,0.00027397,2]
[379173676,1755177042910,-400.0,0.00027397,2]
[379173680,1755177042920,-2206.25,0.00027397,2]
[379173682,1755177042929,-400.0,0.00027397,2]
[379173685,1755177042939,-528.06,0.00027397,2]
[379173686,1755177042949,-528.06,0.00027397,2]
[379173688,1755177042958,-2766.16,0.00027397,2]
[379173690,1755177042969,-843.62,0.00027397,2]
[379173692,1755177042985,-400.0,0.00027397,2]
[379173694,1755177042995,-500.0,0.00027397,2]
[379173696,1755177043005,-500.0,0.00027397,2]
[379173698,1755177043015,-1829.43,0.00027397,2]
[379173700,1755177043025,-800.4,0.00027397,2]
[379173702,1755177043035,-815.04,0.00027397,2]
[379173705,1755177043045,-400.0,0.00027397,2]
[379173706,1755177043054,-400.0,0.00027397,2]
[379173708,1755177043064,-2057.09,0.00027397,2]
[379173710,1755177043073,-400.0,0.00027397,2]
[379173712,1755177043083,-2260.3,0.00027397,2]
[379173714,1755177043093,-400.0,0.00027397,2]
[379173716,1755177043103,-400.0,0.00027397,2]
[379173717,1755177043113,-2201.94,0.00027397,2]
[379173719,1755177043122,-1557.13,0.00027397,2]
[379173720,1755177043132,-400.0,0.00027397,2]
[379173721,1755177043143,-435.86,0.00027397,2]
[379173722,1755177043154,-400.0,0.00027397,2]
[379173724,1755177043165,-2726.03,0.00027397,2]
[379173726,1755177043175,-1587.37,0.00027397,2]
[379173727,1755177043186,-3103.3,0.00027397,2]
[379173729,1755177043196,-1497.67,0.00027397,2]
[379173731,1755177043206,-500.0,0.00027397,2]
[379173733,1755177043217,-500.0,0.00027397,2]
[379173734,1755177043230,-400.0,0.00027397,2]
[379173735,1755177043240,-1742.65,0.00027397,2]
[379173736,1755177043250,-5542.92,0.00027397,2]
[379173737,1755177043260,-1189.68,0.00027397,2]
[379173738,1755177043272,-2448.07,0.00027397,2]
[379173739,1755177043282,-1436.51,0.00027397,2]
[379173740,1755177043293,-824.99,0.00027397,2]
[379173741,1755177043309,-6150.24,0.00027397,2]
[379173742,1755177043319,-1473.14,0.00027397,2]
[379173743,1755177043329,-703.69,0.00027397,2]
[379173744,1755177043339,-400.0,0.00027397,2]
[379173745,1755177043350,-1205.89,0.00027397,2]
[379173746,1755177043360,-2949.8,0.00027397,2]
[379173747,1755177043370,-400.0,0.00027397,2]
[379173748,1755177043380,-400.0,0.00027397,2]
[379173749,1755177043390,-1139.76,0.00027397,2]
[379173750,1755177043400,-400.0,0.00027397,2]
[379173751,1755177043410,-3124.78,0.00027397,2]
[379173752,1755177043421,-400.0,0.00027397,2]
[379173754,1755177043431,-479.37,0.00027397,2]
[379173755,1755177043441,-400.0,0.00027397,2]
[379173756,1755177043452,-400.0,0.00027397,2]
[379173757,1755177043462,-508.96,0.00027397,2]
[379173758,1755177043473,-400.0,0.00027397,2]
[379173759,1755177043486,-2932.58,0.00027397,2]
[379173760,1755177043497,-648.02,0.00027397,2]
[379173761,1755177043508,-1193.83,0.00027397,2]
[379173762,1755177043519,-596.95,0.00027397,2]
[379173763,1755177043530,-596.95,0.00027397,2]
[379173764,1755177043541,-1841.75,0.00027397,2]
[379173765,1755177043552,-3059.19,0.00027397,2]
[379173766,1755177043562,-614.21,0.00027397,2]
[379173767,1755177043573,-913.95,0.00027397,2]
[379173768,1755177043583,-400.0,0.00027397,2]
[379173769,1755177043594,-400.0,0.00027397,2]
[379173770,1755177043604,-1810.75,0.00027397,2]
[379173771,1755177043615,-1394.21,0.00027397,2]
[379173772,1755177043625,-610.4,0.00027397,2]
[379173773,1755177043639,-545.5,0.00027397,2]
[379173774,1755177043650,-400.0,0.00027397,2]
[379173775,1755177043661,-400.0,0.00027397,2]
[379173776,1755177043672,-948.32,0.00027397,2]
[379173777,1755177043682,-838.43,0.00027397,2]
[379173778,1755177043692,-400.0,0.00027397,2]
[379173779,1755177043702,-400.0,0.00027397,2]
[379173780,1755177043713,-2262.11,0.00027397,2]
[379173781,1755177043723,-592.59,0.00027397,2]
[379173782,1755177043736,-402.93,0.00027397,2]
[379173783,1755177043746,-1923.8,0.00027397,2]
[379173784,1755177043757,-557.42,0.00027397,2]
[379173785,1755177043767,-1991.69,0.00027397,2]
[379173786,1755177043777,-400.0,0.00027397,2]
[379173787,1755177043788,-774.26,0.00027397,2]
[379173788,1755177043799,-923.35,0.00027397,2]
[379173790,1755177043809,-2004.7,0.00027397,2]
[379173791,1755177043819,-400.0,0.00027397,2]
[379173792,1755177043829,-400.0,0.00027397,2]
[379173793,1755177043838,-1250.26,0.00027397,2]
[379173794,1755177043848,-1460.5,0.00027397,2]
[379173795,1755177043858,-400.0,0.00027397,2]
[379173796,1755177043868,-1110.26,0.00027397,2]
[379173797,1755177043878,-400.0,0.00027397,2]
[379173798,1755177043887,-400.0,0.00027397,2]
[379173799,1755177043898,-401.37302665,0.00027397,2]
[379173800,1755177043909,-500.0,0.00027397,2]
[379173801,1755177043919,-515.04,0.00027397,2]
[379173802,1755177043929,-400.0,0.00027397,2]
[379173803,1755177043939,-1260.05,0.00027397,2]
[379173804,1755177043949,-666.52,0.00027397,2]
[379173805,1755177043959,-490.0,0.00027397,2]
[379173806,1755177043969,-400.0,0.00027397,2]
[379173807,1755177043982,-400.0,0.00027397,2]
[379173808,1755177043991,-527.15,0.00027397,2]
[379173809,1755177044001,-1354.72,0.00027397,2]
[379173811,1755177044011,-400.0,0.00027397,2]
[379173813,1755177044023,-400.0,0.00027397,2]
[379173815,1755177044033,-2751.54,0.00027397,2]
[379173817,1755177044043,-400.0,0.00027397,2]
[379173821,1755177044054,-400.0,0.00027397,2]
[379173823,1755177044063,-1685.02,0.00027397,2]
[379173827,1755177044073,-402.63271861,0.00027397,2]
[379173830,1755177044083,-1947.63,0.00027397,2]
[379173833,1755177044093,-400.0,0.00027397,2]
[379173836,1755177044103,-400.0,0.00027397,2]
[379173839,1755177044112,-400.0,0.00027397,2]
[379173842,1755177044122,-400.0,0.00027397,2]
[379173845,1755177044132,-2756.29,0.00027397,2]
[379173848,1755177044142,-1016.49,0.00027397,2]
[379173851,1755177044153,-788.39,0.00027397,2]
[379173854,1755177044164,-401.98615503,0.00027397,2]
[379173857,1755177044174,-773.87,0.00027397,2]
[379173860,1755177044185,-400.0,0.00027397,2]
[379173863,1755177044195,-400.0,0.00027397,2]
[379173866,1755177044205,-400.0,0.00027397,2]
[379173869,1755177044216,-2695.82,0.00027397,2]
[379173872,1755177044228,-400.0,0.00027397,2]
[379173875,1755177044238,-400.0,0.00027397,2]
[379173876,1755177044248,-420.7,0.00027397,2]
[379173879,1755177044259,-580.6,0.00027397,2]
[379173881,1755177044270,-2414.68,0.00027397,2]
[379173883,1755177044280,-639.79,0.00027397,2]
[379173884,1755177044291,-446.15,0.00027397,2]
[379173887,1755177044302,-400.0,0.00027397,2]
[379173888,1755177044312,-1290.52,0.00027397,2]
[379173890,1755177044323,-702.42,0.00027397,2]
[379173892,1755177044334,-1139.95,0.00027397,2]
[379173894,1755177044344,-400.0,0.00027397,2]
[379173896,1755177044355,-5000.0,0.00027397,2]
[379173899,1755177044366,-847.66,0.00027397,2]
[379173900,1755177044375,-472.79,0.00027397,2]
[379173903,1755177044386,-1308.23,0.00027397,2]
[379173905,1755177044396,-4027.47,0.00027397,2]
[379173907,1755177044406,-938.67,0.00027397,2]
[379173909,1755177044416,-2661.06,0.00027397,2]
[379173911,1755177044426,-400.0,0.00027397,2]
[379173913,1755177044437,-1385.87,0.00027397,2]
[379173915,1755177044448,-633.44,0.00027397,2]
[379173917,1755177044458,-961.82,0.00027397,2]
[379173919,1755177044468,-400.0,0.00027397,2]
[379173921,1755177044481,-6563.35,0.00027397,2]
[379173923,1755177044492,-401.62567205,0.00027397,2]
[379173925,1755177044503,-2119.64,0.00027397,2]
[379173927,1755177044514,-400.0,0.00027397,2]
[379173929,1755177044525,-400.0,0.00027397,2]
[379173931,1755177044536,-400.0,0.00027397,2]
[379173933,1755177044547,-400.0,0.00027397,2]
[379173935,1755177044557,-280.9,0.00027397,80]
[379173937,1755177044568,-506.48,0.00027397,2]
[379173939,1755177044578,-1000.0,0.00027397,7]
[379173941,1755177044588,-166.0,0.00027397,7]
[379173943,1755177044599,-2777.0,0.00027414,2]
[379173945,1755177044609,-211.20794419,0.00027423,2]
[379173947,1755177044620,-8677.47430365,0.00027513,2]
[379173949,1755177044631,-9583.7146308,0.00027514,2]
[379173951,1755177044642,-34709.8972146,0.00027514,2]
[379173953,1755177044652,-11554.15,0.00027523,2]
[379173955,1755177044663,-2396.08,0.00027523,2]
[379173957,1755177044673,-4691.67,0.00027523,2]
[379173958,1755177044683,-400.0,0.00027523,2]
[379173961,1755177044693,-11272.9,0.00027523,2]
[379173962,1755177044703,-491.67636583,0.00027523,2]
[379173965,1755177044715,-3412.5,0.00027523,2]
[379173966,1755177044727,-425.3487449,0.00027523,2]
[379173968,1755177044738,-400.0,0.00027523,2]
[379173970,1755177044748,-400.0,0.00027523,2]
[379173972,1755177044758,-2480.52,0.00027523,2]
[379173974,1755177044768,-10258.72,0.00027523,2]
[379173976,1755177044779,-400.0,0.00027523,2]
[379173978,1755177044789,-4929.31,0.00027523,2]
[379173980,1755177044801,-400.0,0.00027523,2]
[379173982,1755177044811,-4451.57,0.00027523,2]
[379173984,1755177044822,-400.0,0.00027523,2]
[379173986,1755177044832,-400.0,0.00027523,2]
[379173988,1755177044843,-7713.21,0.00027523,2]
[379173990,1755177044854,-17425.72,0.00027523,2]
[379173992,1755177044864,-400.0,0.00027523,2]
[379173994,1755177044874,-400.0,0.00027523,2]
[379173996,1755177044884,-400.0,0.00027523,2]
[379173999,1755177044896,-400.0,0.00027523,2]
[379174000,1755177044906,-400.0,0.00027523,2]
[379174002,1755177044916,-1517.33,0.00027523,2]
[379174005,1755177044927,-5647.65,0.00027523,2]
[379174007,1755177044936,-400.0,0.00027523,2]
[379174008,1755177044946,-400.0,0.00027523,2]
[379174011,1755177044956,-400.0,0.00027523,2]
[379174012,1755177044966,-400.0,0.00027523,2]
[379174015,1755177044977,-400.0,0.00027523,2]
[379174052,1755177044991,-4990.33,0.00027523,2]
[379174053,1755177045400,-400.0,0.00027523,2]
[379174054,1755177045411,-3862.07,0.00027523,2]
[379174055,1755177045422,-400.0,0.00027523,2]
[379174056,1755177045432,-400.0,0.00027523,2]
[379174057,1755177045443,-15508.8,0.00027523,2]
[379174058,1755177045454,-15480.47,0.00027523,2]
[379174059,1755177045464,-901.17,0.00027523,2]
[379174060,1755177045474,-7028.21,0.00027523,2]
[379174061,1755177045486,-6563.35,0.00027523,2]
[379174062,1755177045497,-400.0,0.00027523,2]
[379174063,1755177045507,-67086.0024156,0.00027524,2]
[379174064,1755177045522,-69419.7944292,0.00027524,2]
[379174065,1755177045532,-187.24846935,0.00027524,2]
[379174066,1755177045542,-400.0,0.00027533,2]
[379174067,1755177045554,-400.0,0.00027533,2]
[379174069,1755177045565,-400.0,0.00027533,2]
[379174070,1755177045575,-400.0,0.00027533,2]
[379174072,1755177045586,-400.0,0.00027533,2]
[379174075,1755177045595,-400.0,0.00027533,2]
[379174077,1755177045605,-400.0,0.00027533,2]
[379174079,1755177045614,-400.0,0.00027533,2]
[379174080,1755177045627,-400.0,0.00027533,2]
[379174083,1755177045641,-400.0,0.00027533,2]
[379174085,1755177045652,-400.0,0.00027533,2]
[379174087,1755177045663,-400.0,0.00027533,2]
[379174089,1755177045673,-400.0,0.00027533,2]
[379174090,1755177045683,-500.0,0.00027533,2]
[379174093,1755177045693,-400.0,0.00027533,2]
[379174094,1755177045707,-400.0,0.00027533,2]
[379174095,1755177045718,-479.85,0.00027534,2]
[379174096,1755177045728,-1751.97,0.00027534,2]
[379174097,1755177045739,-4879.8,0.00027534,2]
[379174099,1755177045748,-785.51,0.00027534,2]
[379174101,1755177045759,-920.21,0.00027534,2]
[379174102,1755177045769,-400.0,0.00027534,2]
[379174103,1755177045779,-3738.5,0.00027534,2]
[379174104,1755177045788,-1079.57,0.00027534,2]
[379174105,1755177045798,-400.0,0.00027534,2]
[379174107,1755177045808,-2206.25,0.00027534,2]
[379174109,1755177045818,-2766.16,0.00027534,2]
[379174111,1755177045827,-843.62,0.00027534,2]
[379174112,1755177045838,-400.0,0.00027534,2]
[379174113,1755177045848,-1829.43,0.00027534,2]
[379174115,1755177045859,-800.4,0.00027534,2]